Cogmind - Beta 15 @@@ ROGUE MODE // 2025.09.24 @ 17:10:19 Player: Figgis Result: Destroyed by EG-6CB(R) with Subdweller Laser Performance ------------- Evolutions (0) 0 Regions Visited (3) 600 Robots Destroyed (25) 125 Value Destroyed (694) 694 Prototype IDs (1) 20 Alien Tech Used (0) 0 Bonus (0) 0 TOTAL SCORE: 1439 Bonus ------- None Cogmind --------- Core Integrity 0/250 Matter 157/300 Energy 24/100 System Corruption 0% Temperature Cool (6) Movement Walking (190) Ox1 Location -10/Subcaves Parts ------- > --- POWER (1) -------- (None) > --- PROPULSION (2) --- Aluminum Leg > --- UTILITY (2) ------ Medium Storage Unit Structural Scanner > --- WEAPON (2) ------- Improved Assault Rifle > --- INVENTORY (10) --- Light Ion Engine Aluminum Leg Terrain Scan Processor Targeting Computer Recoil Stabilizer Reactive Plating Peak State ------------ > --- POWER ------------ Ion Engine > --- PROPULSION ------- Aluminum Leg Aluminum Leg > --- UTILITY ---------- Small Storage Unit Hacking Suite > --- WEAPON ----------- Improved Assault Rifle Improved Assault Rifle > --- INVENTORY -------- Light Ion Engine Aluminum Leg Signal Interpreter Terrain Scan Processor Assault Rifle Improved Assault Rifle Mining Laser [Rating: 14] Favorites ----------- Power Ion Engine Engine Ion Engine Propulsion Aluminum Leg Leg Aluminum Leg Utility Structural Scanner Device Structural Scanner Storage Medium Storage Unit Hackware Hacking Suite Weapon Improved Assault Rifle Ballistic Gun Improved Assault Rifle Special Weapon Mining Laser Build | -11 -10 -10 -10 ------- Run | Yrd Mat Min Sub Slots Evolved . | . . . . Power . | . . . . Propulsion . | . . . . Utility . | . . . . Weapon . | . . . . Parts Attached 17 | 3 9 1 4 Power 1 | . 1 . . Engine 1 | . 1 . . Core . | . . . . Reactor . | . . . . Propulsion 7 | 2 2 1 2 Treads . | . . . . Leg 7 | 2 2 1 2 Wheel . | . . . . Hover . | . . . . Flight . | . . . . Utility 4 | . 4 . . Device 1 | . 1 . . Storage 2 | . 2 . . Processor . | . . . . Hackware 1 | . 1 . . Protection . | . . . . Artifact . | . . . . Weapon 5 | 1 2 . 2 Energy Gun . | . . . . Energy Cannon . | . . . . Ballistic Gun 4 | 1 2 . 1 Ballistic Cannon . | . . . . Launcher . | . . . . Special Weapon 1 | . . . 1 Impact Weapon . | . . . . Slashing Weapon . | . . . . Piercing Weapon . | . . . . Special Melee Weapon . | . . . . Unidentified Prototypes 1 | . 1 . . Parts Lost 8 | . 1 . 7 Power 1 | . . . 1 Propulsion 3 | . . . 3 Utility 1 | . 1 . . Weapon 3 | . . . 3 Highest Loss Streak 7 | . 1 . 7 To Critical Strikes 1 | . . . 1 Average Backups 8 | 3 7 9 9 Power 1 | 1 1 1 1 Propulsion 2 | . 1 2 2 Utility 2 | . 1 3 4 Weapon 2 | 1 2 2 1 Tool/Special . | . . . . Unused Backups 9 | . 1 2 6 Power 1 | . . . 1 Propulsion 1 | . . . 1 Utility 5 | . . 1 4 Weapon 2 | . 1 1 . Tool/Special . | . . . . Average Slot Usage (%) 96 | . 94 100 91 Engine 13 | . 13 14 11 Leg 27 | . 28 28 24 Device 11 | . 8 14 14 Storage 13 | . 13 14 14 Ballistic Gun 27 | . 27 28 24 Peak Build Rating 14 | 3 14 12 12 Average Rating 11 | 1 11 12 10 On Entrance 6 | . 3 12 12 Naked Turns . | . . . . Heaviest Build 22 | 1 22 22 22 Greatest Support 20 | 3 20 20 20 Greatest Overweight (x) 2 | . 1 1 2 Average Overweight (x) . | . . 1 1 Largest Inventory Capacity 10 | 5 10 10 10 Average Capacity 9 | 5 8 10 10 Most Carried 10 | 5 9 10 10 Average Carried 8 | 3 7 9 9 Final Capacity 10 | 5 10 10 10 Final Carried 10 | 5 9 10 6 Class Distribution -------------------- 100% | Mutant Dominant Class ---------------- Mutant | -10/Materials Mutant | -10/Mines Mutant | -10/Subcaves Resources | -11 -10 -10 -10 ----------- Run | Yrd Mat Min Sub Matter Collected 679 | 230 309 140 . Remotely . | . . . . Salvage Created 851 | . 393 458 . Parts 52 | . 23 29 . Haulers Intercepted . | . . . . Recyclers Shooed . | . . . . Parts Field Recycled . | . . . . Retrieved Matter . | . . . . Parts Self-Destructed . | . . . . Prevented . | . . . . Kills | -11 -10 -10 -10 ------- Run | Yrd Mat Min Sub Combat Hostiles Destroyed 20 | . 9 11 . Guns 20 | . 9 11 . Classes Destroyed 5 | . 4 1 . Recycler 1 | . . 1 . Operator 2 | . 2 . . Watcher 2 | . 2 . . Swarmer 6 | . 3 3 . Grunt 14 | . 6 8 . Best Kill Streak 7 | . 7 4 . Combat Bots Only 4 | . 3 4 . Max Kills in Single Turn 1 | . 1 1 . Gunslinging . | . . . . Exploded . | . . . . Melee . | . . . . Uniques/NPCs Destroyed . | . . . . Combat | -11 -10 -10 -10 -------- Run | Yrd Mat Min Sub Hostile Shots Fired 118 | . 48 20 50 Missed 41 | . 17 11 13 Hits 77 | . 31 9 37 Projectile 77 | . 31 9 37 Critical Strikes 3 | . 1 . 2 Damage Taken 1221 | . 365 83 773 Core 256 | . 72 . 184 Absorbed by Shields . | . . . . Core Remaining (%) 100 | 100 . . . Volleys Fired 90 | . 42 17 31 Largest 2 | . 2 2 2 Hottest 123 | . 46 46 123 Shots Fired 167 | . 84 34 49 Gun 164 | . 84 34 46 Cannon . | . . . . Launcher . | . . . . Special 3 | . . . 3 Kinetic 164 | . 84 34 46 Thermal 3 | . . . 3 Explosive . | . . . . Electromagnetic . | . . . . Robot Hit Streak 37 | . 10 9 37 Robot Miss Streak 3 | . 3 1 1 Penetration Max . | . . . . Secondary Targets 1 | . . 1 . Max Gunslinging Chain 1 | . . 1 . Shots Hit Robots 122 | . 54 24 44 Core Hits 35 | . 18 17 . Critical Kills . | . . . . Critical Parts Destroyed . | . . . . Critical Strikes . | . . . . Melee Attacks . | . . . . Impact . | . . . . Slashing . | . . . . Piercing . | . . . . Sneak Attacks . | . . . . Combat Hostiles . | . . . . Follow-up Attacks . | . . . . Damage Inflicted 1258 | . 820 387 51 Guns 1234 | . 820 387 27 Cannons . | . . . . Explosions . | . . . . Melee . | . . . . Ramming . | . . . . Kinetic 1234 | . 820 387 27 Thermal 24 | . . . 24 Explosive . | . . . . Electromagnetic . | . . . . Impact . | . . . . Slashing . | . . . . Piercing . | . . . . Highest Corruption . | . . . . Average Corruption . | . . . . Corruption Purged . | . . . . Corruption Blocked . | . . . . Overload Shots . | . . . . Overflow Damage . | . . . . Projectiles . | . . . . Explosions . | . . . . Melee . | . . . . Knockbacks . | . . . . Impact . | . . . . Kinetic . | . . . . Secondary . | . . . . Self-Inflicted Damage . | . . . . Shots . | . . . . Rammed . | . . . . Targets Rammed . | . . . . Kicked . | . . . . Crushed . | . . . . Highest Temperature 22 | . 22 6 . Average Temperature 5 | . 5 2 . Received Heat Transfer 435 | . 177 33 225 Siege Activations . | . . . . Martial Activations . | . . . . Shielding Activations . | . . . . Robots Disrupted . | . . . . Combat Hostiles . | . . . . Robots Corrupted . | . . . . Combat Hostiles . | . . . . Parts Fried . | . . . . Impact Corruptions . | . . . . Robots Melted . | . . . . Combat Hostiles . | . . . . Parts Melted . | . . . . Heat Transferred 50 | . . . 50 Parts Sabotaged . | . . . . Parts Stolen . | . . . . Parts Stripped . | . . . . Power Chain Reactions . | . . . . Alert | -11 -10 -10 -10 ------- Run | Yrd Mat Min Sub Maximum Alert Level . | . . . . Low Security (%) 100 | 100 100 100 . Level 1 . | . . . . Level 2 . | . . . . Level 3 . | . . . . Level 4 . | . . . . Level 5 . | . . . . High Security . | . . . . Max Security . | . . . . Peak Influence 172 | . 172 94 . Initial . | . . . . Average 42 | . 62 26 . Influence Increases 620 | . 330 290 . Destroy 0b10 Robot/C 400 | . 180 220 . Destroy 0b10 Robot/NC 25 | . 20 5 . Destroy Leader 84 | . 34 50 . Successful Hack 6 | . 6 . . Disable Machine 15 | . . 15 . Lose Combat Pursuer 90 | . 90 . . Influence Decreases 620 | . 330 282 8 Entered New Map 5 | . . . 5 Time Decay 605 | . 320 282 3 Lost Part 10 | . 10 . . Squads Dispatched . | . . . . Investigation . | . . . . Extermination . | . . . . Reinforcement . | . . . . Assault . | . . . . Garrison . | . . . . Intercept . | . . . . Searches Triggered . | . . . . Construction Impeded . | . . . . Haulers Reinforced . | . . . . Active Scanning Responses . | . . . . Cargo Convoy Interrupts . | . . . . Stealth | -11 -10 -10 -10 --------- Run | Yrd Mat Min Sub Distress Signals 1 | . 1 . . Communications Jammed . | . . . . Distress Signals . | . . . . Times Spotted 37 | . 25 10 2 Peak Tracking Total 6 | . 6 3 2 Tactical Retreats 4 | . 4 . . Traps | -11 -10 -10 -10 ------- Run | Yrd Mat Min Sub Traps Triggered . | . . . . Indirectly . | . . . . Trap Hack Attempts . | . . . . Triggered . | . . . . Disarmed . | . . . . Reprogrammed . | . . . . Reused . | . . . . Traps Extracted . | . . . . Installed . | . . . . Triggered . | . . . . Machines | -11 -10 -10 -10 ---------- Run | Yrd Mat Min Sub Machines Disabled 1 | . . 1 . Max in Single Turn 1 | . . 1 . Machines Repaired . | . . . . Machines Dismantled . | . . . . Machines Sabotaged . | . . . . Overloaded Fab Kills . | . . . . Hacking | -11 -10 -10 -10 --------- Run | Yrd Mat Min Sub Machines Accessed 6 | . 5 1 . Terminals 5 | . 5 . . Fabricators . | . . . . Repair Stations . | . . . . Recycling Units . | . . . . Scanalyzers . | . . . . Garrison Access . | . . . . Total Hacks 13 | . 12 1 . Successful 8 | . 7 1 . Failed 5 | . 5 . . Catastrophic . | . . . . Database Lockouts . | . . . . Manual 3 | . 3 . . Terminals 12 | . 12 . . Fabricators . | . . . . Repair Stations . | . . . . Recycling Units . | . . . . Scanalyzers . | . . . . Garrison Access . | . . . . Terminal Hacks 8 | . 7 1 . Record 2 | . 2 . . Robot Analysis 1 | . 1 . . Open Door 1 | . . 1 . Alert Level 1 | . 1 . . Locate Traps 3 | . 3 . . Fabricator Hacks . | . . . . Repair Station Hacks . | . . . . Recycling Unit Hacks . | . . . . Scanalyzer . | . . . . Garrison Access Hacks . | . . . . Unauthorized Hacks . | . . . . Terminals . | . . . . Fabricators . | . . . . Repair Stations . | . . . . Recycling Units . | . . . . Scanalyzers . | . . . . Garrison Access . | . . . . Data Cores Recovered 1 | . 1 . . Used 1 | . 1 . . Hacking Detections 5 | . 5 . . Full Trace Events . | . . . . Feedback Events . | . . . . Feedback Blocked . | . . . . Robot Schematics Acquired . | . . . . Robots Built . | . . . . Authchips . | . . . . Time . | . . . . Total Robot Build Rating . | . . . . Part Schematics Acquired . | . . . . Parts Built . | . . . . Authchips . | . . . . Time . | . . . . Total Part Build Rating . | . . . . Parts Repaired . | . . . . Time . | . . . . Parts Recycled . | . . . . Recycled Matter . | . . . . Retrieved Matter . | . . . . Retrieved Components . | . . . . Parts Scanalyzed . | . . . . Part Schematics Acquired . | . . . . Parts Damaged . | . . . . Bothacking | -11 -10 -10 -10 ------------ Run | Yrd Mat Min Sub Used RIF Installer . | . . . . Robots Hacked . | . . . . Non-combat . | . . . . Combat . | . . . . Robot Hacks Applied . | . . . . Relay Couplers Released . | . . . . Fabnet Peak Effective % . | . . . . Robots Rewired . | . . . . Allies Hacked . | . . . . Hacks Repelled . | . . . . Allies | -11 -10 -10 -10 -------- Run | Yrd Mat Min Sub Total Allies . | . . . . Largest Group . | . . . . Highest-Rated Group . | . . . . Highest-Rated Ally . | . . . . Total Orders . | . . . . Ally Attacks . | . . . . Total Damage . | . . . . Kills . | . . . . Allies Corrupted . | . . . . Allies Melted . | . . . . Intel | -11 -10 -10 -10 ------- Run | Yrd Mat Min Sub Active Infowar (turns) 2008 | . 607 1224 177 Structural 2008 | . 607 1224 177 Robot Analysis Total 1 | . 1 . . Derelict Logs Recovered 1 | . . 1 . Drone Launches . | . . . . Drone Recoveries . | . . . . Exploration | -11 -10 -10 -10 ------------- Run | Yrd Mat Min Sub Turns Passed 2417 | 28 988 1224 177 Spaces Moved 1294 | 34 601 613 46 Core 38 | 34 4 . . Treads . | . . . . Legs 1256 | . 597 613 46 Wheels . | . . . . Hover . | . . . . Flight . | . . . . Fastest Speed 50 | 50 50 190 120 Average Speed 159 | 50 131 190 190 Slowest Speed 260 | 50 190 190 260 Overloaded Moves . | . . . . Propulsion Burnouts . | . . . . Robots Hopped . | . . . . Potential Cave-ins . | . . . . Cave-ins Triggered . | . . . . Exploration Rate (%) 50 | 3 93 100 6 Regions Visited 3 Branch Regions 2 Pre-discovered Areas 1 | . . 1 . Known Exits Taken . | . . . . Unknown Exits Taken 3 | 1 1 1 . Scrap Searched 1 | . . 1 . Spaces Dug . | . . . . Terrain Destroyed . | . . . . Melee . | . . . . Projectile . | . . . . AOE . | . . . . Terrain Rammed . | . . . . Walls Destroyed . | . . . . Machines Disabled . | . . . . Actions | -11 -10 -10 -10 --------- Run | Yrd Mat Min Sub Total 1483 | 43 719 640 81 Wait 56 | . 52 4 . Move 1291 | 33 600 612 46 Hop . | . . . . Pick Up 20 | 7 10 3 . Fast Attach 3 | 1 2 . . Attach 10 | 2 4 . 4 Detach . | . . . . Swap 4 | . 3 1 . Drop 9 | . 6 3 . Fire 90 | . 42 17 31 Melee . | . . . . Ram . | . . . . Kick . | . . . . Crush . | . . . . Escape Stasis . | . . . . Rewire . | . . . . Trap . | . . . . Miscellaneous . | . . . . Route ------- -11/Scrapyard -10/Materials (discovered 5 exits: [*Mat x3] / *Min x2) -10/Mines (discovered 3 exits: [*Mat x2] / [*Sub]) -10/Subcaves (discovered 1 exit: [*Mat]) History --------- Turn | Location | Event 15 | -11/Scrapyard | Discovered new exit (range 14) 29 | -11/Scrapyard | Entered Materials 314 | -10/Materials | Build established: Mutant 393 | -10/Materials | Discovered new exit (range 13) 445 | -10/Materials | Discovered new exit (range 7) 538 | -10/Materials | Discovered new exit (range 12) 786 | -10/Materials | Discovered new exit (range 3) 929 | -10/Materials | Derelicts attacked the area 1009 | -10/Materials | Discovered new exit (range 5) 1017 | -10/Materials | Entered Mines 1071 | -10/Mines | Found a hidden stash of uninstalled traps 1207 | -10/Mines | Discovered new exit (range 9) 1370 | -10/Mines | Discovered new exit (range 10) 1378 | -10/Mines | Learned location of Mines (-9) 1974 | -10/Mines | Discovered new exit (range 6) 2028 | -10/Mines | Met a Derelict who couldn't figure out how to use a Trap Extractor 2241 | -10/Mines | Entered Subcaves 2242 | -10/Subcaves | Approached by a straggling Scientist 2243 | -10/Subcaves | Discovered new exit (range 11) 2274 | -10/Subcaves | Shifting Twisted Machinery released Flamer 2357 | -10/Subcaves | Core integrity fell below 50% 2397 | -10/Subcaves | Core integrity fell below 20% 2418 | -10/Subcaves | Destroyed by EG-6CB(R) with Subdweller Laser Last Messages --------------- never make it past all the Subs lurking out here." 02243_ EXIT=FOUND 02245_ 7V-NYQ(c): "Hey, let me tag along and I can get us both out of this nasty situation. At least I think I can... The group I got separated from was talking about a shortcut back to the UFD." 02249_ U2-AS1(O) collects matter. Flamer falls loose from the Twisted Machinery. 7V-NYQ(c): "I think it's somewhere southeast of here" 02294_ U2-AS1(O) collects matter. 7V-NYQ(c): "I think it's somewhere southeast of here" 02352_ Imp. Assault Rifle destroyed. 02354_ Critical hit (Destroy). 02354_ Aluminum Leg destroyed. 02372_ Imp. Assault Rifle destroyed. 02378_ Aluminum Leg destroyed. 02388_ Ion Engine destroyed. 7V-NYQ(c): "I think it's somewhere southeast of here" 02411_ 7V-NYQ(c) destroyed. 02414_ Mining Laser destroyed. 02414_ Aluminum Leg destroyed. Map ----- +----------------------------------------------------+ | ?????????????????????????????#########" ### ""& # | | ?????????????????????????????### ##""" | | ?????????????????????????????"" """ &" | | ?????????????????? ##"?????????"""" " ### | | ?????????????????? ##"??????????##" ### # | | ?????????????????? "" ""??????##### ##### ## | | ???????????????????" ""########## | | ???????????????????""""""#######" " | | ???????????????????## ""####" # # # % | | ???????????????????### ""###" ############ | | ????????????????????## "###" ############# ## | | ????????????????????## "##" ###????????####### | | ?????????????????? ### """|" ###?????????###### | | ?????????????????? #### ##???????????????? | | ?????????????????? ##### ###??????????????? | | ??????????????????? #### ###??????????????? | | ????????????????????? ## ##??????????????? | | ??????????????????????? ## ##??????????????? | | ???????????????????????## ## ###??????????????? | | ???????????????????????"## # ###??????????????? | | ??????????????????????? <# " ##??????????????? | | ????????????????????????<#" ###??????????????? | | ???????????????????????""# "" ####??????????????? | | ????????????????? ##""# "" ####???????????????? | | ????????????????? # O#### " ####????????????????? | | ?????????????????### % R@ " ###?????????????????? | | ??????????????????######## "*##?????????????????? | | ??????????????????#########R!%##?????????????????? | | ????????????????????????##%$####?????????????????? | | ????????????????????????# ###"?????????????????? | | ???????????????????????? ##" ???????????????????? | | ???????????????????????? #" ??????????????????? | | ??????????????????????? ?##"## ??????????????????? | | ?????????????????????# #?####" ??????????????????? | | ????????????????????# ##?####"???????????????????? | | ????????????????????####?????????????????????????? | | ????????????????????###??????????????????????????? | | ?????????????????????????????????????????????????? | | ?????????????????????????????????????????????????? | | ?????????????????????????????????????????????????? | | ?????????????????????????????????????????????????? | | ?????????????????????????????????????????????????? | | ?????????????????????????????????????????????????? | | ?????????????????????????????????????????????????? | | ?????????????????????????????????????????????????? | | ?????????????????????????????????????????????????? | | ?????????????????????????????????????????????????? | | ?????????????????????????????????????????????????? | | ?????????????????????????????????????????????????? | | ?????????????????????????????????????????????????? | +----------------------------------------------------+ Best States ------------- Heat Dissipation 25 Energy Generation 10 Energy Capacity 250 Matter Stores 300 Matter Capacity 300 Sight Range 16 Terrain Scan Density 10 Evasion (%) 55 Offensive Hacking 10 Item Schematics ----------------- None Robot Schematics ------------------ None Fabricated ------------ Nothing Repaired ---------- Nothing Alien Tech Used ----------------- None Achievements -------------- None Challenges ------------ None Game ------ Seed ActuatorSmallMicrothruster Manual? 0 Play Time 00:12:47 Cumulative 179.8 hours Start 2025.09.24 @ 16:58:25 End 2025.09.24 @ 17:10:19 Sessions 1 Manual Loads 0 Difficulty Rogue Special Mode None Game No. 282 Rogue 279 Adventurer 3 Explorer 0 Win Type - Total 1 Types 1/0/0/0/0/0/0/0/0/0 Lore% 63 Gallery% 58 Achievement% 46 Wizard Run 0 Options --------- Layout 0 ASCII 0 Keyboard 0 Movement Mouse Keybinds 0 Fullscreen 2 Font 18/SmallcapsGlow Map View 76x50 Zoom Use 0% Tactical HUD 1 Map Filters NONE Filters NONE Steam 1 RUN: 7f87f035-beaf-4946-8a84-cc04babeebff